bitfinex-derivatives/quotes_BTCF0:USTF0_20241227
["timestamp","ask_amount","ask_price","bid_price","bid_amount"]
[1735319655901,0.413935,94246.0,94222.0,0.25320756]
[1735319656113,0.413935,94246.0,94218.0,0.3608]
[1735319656114,0.053147,94225.0,94218.0,0.3608]
[1735319656297,0.0356,94224.0,94218.0,0.369613]
[1735319656613,0.088747,94224.0,94218.0,0.369613]
[1735319657006,0.053148,94223.0,94218.0,0.369613]
[1735319657309,0.053148,94223.0,94218.0,0.375613]
[1735319657500,0.0356,94224.0,94218.0,0.375613]
[1735319657805,0.053141,94235.0,94225.0,0.053146]
[1735319658011,0.053141,94235.0,94227.0,0.053145]
[1735319659705,0.054141,94235.0,94227.0,0.053145]
[1735319660298,0.054141,94235.0,94218.0,0.373613]
[1735319660299,0.001,94235.0,94219.0,0.053149]
[1735319660503,0.053145,94227.0,94219.0,0.053149]
[1735319660816,0.001,94235.0,94219.0,0.053149]
[1735319661015,0.46910125,94230.0,94218.0,0.3608]
[1735319661313,0.46910125,94230.0,94210.0,0.00104]
[1735319661314,0.053149,94221.0,94210.0,0.00104]
[1735319661517,0.053153,94213.0,94208.0,0.36239198]
[1735319661810,0.0347,94212.0,94208.0,0.36239198]
[1735319662208,0.0347,94212.0,94208.0,0.37161442]
[1735319662807,0.0347,94212.0,94208.0,0.37361442]
[1735319663007,0.087854,94212.0,94208.0,0.37361442]
[1735319663613,0.087854,94212.0,94208.0,0.37161442]
[1735319663814,0.087854,94212.0,94208.0,0.37261442]
[1735319664006,0.087854,94212.0,94208.0,0.37661442]
[1735319664413,0.0347,94212.0,94208.0,0.37661442]
[1735319664717,0.053155,94211.0,94208.0,0.37661442]
[1735319665818,0.36140001,94222.0,94208.0,0.37661442]
[1735319666014,0.3608,94222.0,94220.0,0.053149]
[1735319666213,0.36136001,94230.0,94226.0,0.053146]
[1735319666214,0.00056001,94230.0,94226.0,0.053146]
[1735319666508,0.034,94236.0,94226.0,0.053146]
[1735319667212,0.034,94236.0,94227.0,0.053145]
[1735319667417,0.004,94230.0,94227.0,0.053145]
[1735319667720,0.004,94230.0,94221.0,0.3608]
[1735319667721,0.004,94230.0,94229.0,0.413944]
[1735319668010,0.3608,94238.0,94232.0,0.053142]
[1735319668228,0.3608,94238.0,94229.0,0.63]
[1735319668520,0.053142,94233.0,94227.0,0.053145]
[1735319669720,0.054144,94230.0,94221.0,0.3696858]
[1735319669916,0.054144,94230.0,94221.0,0.4228338]
[1735319670111,0.054144,94230.0,94222.0,0.053147]
[1735319670313,0.053144,94230.0,94227.0,0.003]
[1735319670909,0.3608,94228.0,94222.0,0.053147]
[1735319671213,0.413945,94228.0,94222.0,0.053147]
[1735319671717,0.413945,94228.0,94227.0,0.003]
[1735319671912,0.053145,94228.0,94227.0,0.003]
[1735319672119,0.3608,94237.0,94227.0,0.003]
[1735319672417,0.36136001,94247.0,94230.0,0.3608]
[1735319672716,0.05369401,94247.0,94242.0,0.053136]
[1735319672921,0.053134,94247.0,94242.0,0.053136]
[1735319674205,0.0338,94248.0,94242.0,0.053136]
[1735319674520,0.00659199,94244.0,94242.0,0.053136]
[1735319675112,0.00259199,94244.0,94242.0,0.055136]
[1735319675727,0.00259199,94244.0,94242.0,0.06432552]
[1735319676606,0.00259199,94244.0,94242.0,0.06332552]
[1735319677005,0.00259199,94244.0,94242.0,0.01018952]
[1735319677204,0.053155,94210.0,94200.0,0.35320756]
[1735319677417,0.3608,94209.0,94200.0,0.35320756]
[1735319677610,0.3969,94209.0,94200.0,0.35320756]
[1735319677812,0.3969,94209.0,94205.0,0.053157]
[1735319678216,0.3969,94209.0,94208.0,0.00759198]
[1735319678419,0.3969,94209.0,94208.0,0.01659198]
[1735319679215,0.3969,94209.0,94208.0,0.01159198]
[1735319679810,0.3969,94209.0,94208.0,0.00259198]
[1735319680110,0.3969,94209.0,94208.0,0.00659198]
[1735319681311,0.00888686,94209.0,94208.0,0.05974798]
[1735319681511,0.053149,94220.0,94214.0,0.053152]
[1735319681710,0.3608,94224.0,94215.0,0.053151]
[1735319681711,0.36140001,94224.0,94215.0,0.053151]
[1735319681918,0.3608,94224.0,94216.0,0.63]
[1735319682117,0.053147,94223.0,94216.0,0.63]
[1735319682315,0.36140001,94224.0,94216.0,0.63]
[1735319682516,0.36140001,94224.0,94215.0,0.053151]
[1735319682517,0.3608,94224.0,94215.0,0.053151]
[1735319682716,0.3608,94216.0,94215.0,0.053151]
[1735319683713,0.3608,94216.0,94215.0,0.054151]
[1735319684309,0.001,94216.0,94215.0,0.059152]
[1735319684913,0.3618,94224.0,94216.0,0.053151]
[1735319685121,0.3608,94224.0,94222.0,0.053148]
[1735319685317,0.3608,94233.0,94219.0,0.3608]
[1735319685519,0.3944,94242.0,94236.0,0.05314]
[1735319685717,0.053134,94246.0,94237.0,0.053139]
[1735319686021,0.053134,94246.0,94238.0,0.053139]
[1735319686719,0.053134,94246.0,94233.0,0.25320756]
[1735319687021,0.053134,94246.0,94239.0,0.053138]
[1735319687609,0.3608,94242.0,94239.0,0.053138]
[1735319687825,0.053138,94240.0,94238.0,0.002]
[1735319688020,0.053138,94240.0,94232.0,0.25320756]
[1735319688021,0.0336,94239.0,94221.0,0.00104]
[1735319688214,0.053148,94222.0,94200.0,0.1]
[1735319688522,0.053155,94209.0,94200.0,0.10104]
[1735319688722,0.7216,94209.0,94200.0,0.10104]
[1735319688920,0.41396,94201.0,94200.0,0.10104]
[1735319689223,0.41396,94201.0,94200.0,0.1]
[1735319690712,0.42286526,94201.0,94200.0,0.1]
[1735319690909,0.42386526,94201.0,94200.0,0.108]
[1735319691909,0.42386526,94201.0,94200.0,0.11]
[1735319694227,0.41496,94201.0,94200.0,0.11]
[1735319701620,0.053166,94190.0,94182.0,0.00912439]
[1735319701819,0.053167,94189.0,94181.0,0.0015926]
[1735319702021,0.3608,94190.0,94181.0,0.6315926]
[1735319702426,0.3618,94201.0,94186.0,0.3608]
[1735319702619,0.3618,94201.0,94190.0,0.16262618]
[1735319702932,0.3618,94201.0,94187.0,0.0352]
[1735319703121,0.053164,94194.0,94187.0,0.0352]
[1735319703731,0.3608,94191.0,94190.0,0.053166]
[1735319704318,0.36144,94201.0,94200.0,0.05316]
[1735319704525,0.0178177,94253.0,94236.0,0.05314]
[1735319704821,0.053134,94248.0,94236.0,1.04394]
[1735319705223,0.31446595,94254.0,94236.0,1.04394]
[1735319705224,0.3608,94250.0,94236.0,0.9908]
[1735319705535,0.053139,94238.0,94236.0,0.3608]
[1735319706219,0.3608,94242.0,94215.0,0.3608]
[1735319706526,0.053149,94221.0,94217.0,0.01069371]
[1735319706733,0.053149,94221.0,94217.0,0.00159189]
[1735319706937,0.36136001,94228.0,94217.0,0.00159189]
[1735319707122,0.3608,94228.0,94217.0,0.05474189]
[1735319707427,0.053148,94223.0,94217.0,0.05574189]
[1735319708225,0.36140001,94228.0,94217.0,0.01157816]
[1735319708530,0.3608,94228.0,94218.0,0.05315]
[1735319708724,0.053144,94230.0,94218.0,0.05315]
[1735319708924,0.001,94228.0,94218.0,0.05315]
[1735319709328,0.054145,94228.0,94218.0,0.05315]
[1735319709630,0.053146,94227.0,94218.0,0.05315]
[1735319710329,0.001,94223.0,94220.0,0.053149]
[1735319710634,0.001,94223.0,94221.0,0.053148]
[1735319711126,0.053143,94231.0,94221.0,0.053148]
[1735319712033,0.053143,94231.0,94230.0,0.3608]
[1735319712325,0.21973416,94234.0,94230.0,0.3608]
[1735319712530,0.21973416,94236.0,94230.0,0.413943]
[1735319713328,0.21973416,94236.0,94230.0,0.3608]
[1735319713531,0.053141,94234.0,94230.0,0.3608]
[1735319714125,0.001,94231.0,94230.0,0.3608]
[1735319714527,0.001,94236.0,94230.0,0.3608]
[1735319714724,0.001,94234.0,94230.0,0.3608]
[1735319715237,0.001,94236.0,94235.0,0.053141]
[1735319716637,0.00159199,94244.0,94236.0,0.05314]
[1735319716825,0.00159199,94244.0,94237.0,0.053139]
[1735319717025,0.00159199,94244.0,94230.0,0.52430696]
[1735319717323,0.00159199,94244.0,94230.0,0.50574696]
[1735319717528,0.003,94236.0,94230.0,0.50574696]
[1735319718034,0.002,94236.0,94235.0,0.053141]
[1735319718230,0.00359199,94244.0,94232.0,0.0347]
[1735319718423,0.00459199,94244.0,94243.0,0.3608]
[1735319718627,0.00259199,94244.0,94243.0,0.3608]
[1735319719824,0.36239199,94244.0,94230.0,0.34508]
[1735319720033,0.002,94236.0,94230.0,0.34416]
[1735319720240,0.053143,94232.0,94230.0,0.34316]
[1735319721230,0.053139,94239.0,94233.0,0.053141]
[1735319721929,0.053139,94239.0,94234.0,0.053141]
[1735319722330,0.0334,94243.0,94230.0,0.34416]
[1735319722528,0.0334,94243.0,94235.0,0.05314]
[1735319723030,0.053137,94242.0,94235.0,0.05314]
[1735319723639,0.002,94239.0,94235.0,0.05314]
[1735319724139,0.25312475,94239.0,94235.0,0.05314]
[1735319724441,0.25112475,94239.0,94235.0,0.05314]
[1735319724836,0.25212475,94239.0,94235.0,0.05314]
[1735319725344,0.25212475,94239.0,94238.0,0.413939]
[1735319725537,0.001,94239.0,94238.0,0.413939]
[1735319726245,0.003,94239.0,94238.0,0.413939]
[1735319726939,0.004,94239.0,94238.0,0.413939]
[1735319727539,0.006,94239.0,94238.0,0.413939]
[1735319728559,0.059138,94239.0,94238.0,0.3608]
[1735319729064,0.006,94239.0,94238.0,0.3608]
[1735319729466,0.006,94239.0,94238.0,0.37030425]
[1735319729666,0.00159188,94261.0,94256.0,0.053129]
[1735319729856,0.00159188,94261.0,94256.0,0.413929]
[1735319730166,0.00159188,94261.0,94256.0,1.043929]
[1735319730557,0.00159188,94261.0,94260.0,0.053127]
[1735319732457,0.76848085,94261.0,94227.0,0.3608]
[1735319732667,0.053144,94229.0,94227.0,0.3608]
[1735319732969,0.10832884,94240.0,94227.0,0.3608]
[1735319733168,0.0344,94239.0,94227.0,0.3608]
[1735319733368,0.053142,94233.0,94227.0,0.3608]
[1735319733559,0.0344,94239.0,94227.0,0.3608]
[1735319733764,0.0344,94239.0,94236.0,0.3608]
[1735319734661,0.053136,94244.0,94236.0,0.3608]
[1735319735060,0.36136001,94245.0,94236.0,0.3608]
[1735319735259,0.053139,94239.0,94236.0,0.3608]
[1735319735969,0.36136001,94245.0,94236.0,0.3608]
[1735319736268,0.053139,94238.0,94236.0,0.3608]
[1735319736762,0.36136001,94245.0,94244.0,0.053136]
[1735319736763,0.00056001,94245.0,94244.0,0.053136]
[1735319736961,0.21925329,94251.0,94250.0,0.053132]
[1735319737156,0.21869328,94251.0,94250.0,0.413932]
[1735319737966,0.00159188,94261.0,94250.0,0.413932]
[1735319738167,0.53368866,94290.0,94260.0,0.3608]
[1735319738361,0.05311,94289.0,94287.0,0.3608]
[1735319738657,0.053117,94277.0,94276.0,0.3608]
[1735319740059,0.009,94277.0,94276.0,0.3618]
[1735319740266,0.009,94277.0,94276.0,0.414917]
[1735319741262,0.009,94277.0,94276.0,0.3618]
[1735319742660,0.009,94277.0,94268.0,0.00159105]
[1735319742661,0.3698,94277.0,94268.0,0.00159105]
[1735319742861,0.3698,94277.0,94253.0,0.3608]
[1735319742862,0.0335,94276.0,94253.0,0.3608]
[1735319743172,0.05313,94254.0,94253.0,0.3608]
[1735319743557,0.053133,94249.0,94241.0,0.00921299]
[1735319743875,0.053138,94239.0,94238.0,0.3608]
[1735319747271,0.054138,94239.0,94238.0,0.3608]
[1735319749873,0.056138,94239.0,94238.0,0.3608]
[1735319750083,0.053149,94221.0,94220.0,0.3608]
[1735319750271,0.053151,94217.0,94216.0,0.00159188]
[1735319752175,0.15928952,94217.0,94216.0,0.00159188]
[1735319752370,0.15928952,94217.0,94189.0,0.37035362]
[1735319752371,0.053161,94198.0,94189.0,0.37035362]
[1735319753371,0.053163,94196.0,94189.0,0.37035362]
[1735319753677,0.053163,94196.0,94189.0,0.37535362]
[1735319753980,0.053163,94196.0,94189.0,0.38035362]
[1735319755179,0.053163,94196.0,94189.0,0.37535362]
[1735319755472,0.053163,94196.0,94189.0,0.38035362]
[1735319755676,0.053165,94192.0,94189.0,0.3708]
[1735319755873,0.001,94196.0,94189.0,0.3708]
[1735319756574,0.054163,94196.0,94189.0,0.3708]
[1735319756880,0.053166,94191.0,94189.0,0.01]
[1735319757080,0.053171,94182.0,94181.0,0.3608]
[1735319757279,0.053177,94172.0,94170.0,0.36239264]
[1735319758370,0.3608,94190.0,94170.0,0.36239264]
[1735319758566,0.053173,94178.0,94170.0,0.36239264]
[1735319758777,0.053169,94186.0,94174.0,0.053175]
[1735319758981,0.053168,94186.0,94185.0,0.3608]
[1735319759978,0.053168,94186.0,94170.0,0.00659264]
[1735319759979,0.7216,94190.0,94170.0,0.00159264]
[1735319760179,0.053177,94171.0,94170.0,0.00159264]
[1735319761480,0.053179,94167.0,94165.0,0.3608]
[1735319762581,0.001,94171.0,94165.0,0.3608]
[1735319762773,0.3608,94177.0,94165.0,0.3608]
[1735319762774,0.053179,94167.0,94165.0,0.3608]
[1735319762973,0.054179,94167.0,94165.0,0.3608]
[1735319764866,0.054179,94167.0,94165.0,0.3658]
[1735319765171,0.0635594,94167.0,94165.0,0.3658]
[1735319765577,0.0635594,94167.0,94165.0,0.3628]
[1735319766272,0.0635594,94167.0,94165.0,0.3618]
[1735319766977,0.034,94166.0,94165.0,0.3618]
[1735319768080,0.034,94166.0,94165.0,0.3608]
[1735319768784,0.800996,94166.0,94145.0,0.3608]
[1735319768982,0.16255064,94155.0,94145.0,0.3608]
[1735319769185,0.053191,94147.0,94145.0,0.3608]
[1735319770985,0.054191,94147.0,94145.0,0.3608]
[1735319771474,0.054191,94147.0,94145.0,0.3648]
[1735319771883,0.001,94147.0,94145.0,0.3648]
[1735319772182,0.001,94147.0,94146.0,0.053191]
[1735319772879,0.001,94147.0,94145.0,0.3648]
[1735319773079,0.001,94147.0,94145.0,0.3608]
[1735319773279,0.053188,94151.0,94146.0,0.004]
[1735319773480,0.001,94147.0,94146.0,0.004]
[1735319773981,0.001,94147.0,94146.0,0.057191]
[1735319775278,0.001,94147.0,94146.0,0.053191]
[1735319775484,0.053186,94155.0,94149.0,0.053189]
[1735319775684,0.053186,94155.0,94154.0,0.3608]
[1735319777201,0.054186,94155.0,94154.0,0.3608]
[1735319777385,0.05319,94147.0,94146.0,0.004]
[1735319778397,0.05319,94147.0,94145.0,0.3608]
[1735319778896,0.3608,94151.0,94134.0,0.3608]
[1735319779100,0.053197,94135.0,94134.0,0.3608]
[1735319779987,0.053197,94135.0,94134.0,0.3668]
[1735319781399,0.053197,94135.0,94134.0,0.3608]
[1735319781593,0.055197,94135.0,94134.0,0.3668]
[1735319784402,0.002,94135.0,94134.0,0.419998]
[1735319784696,0.053188,94151.0,94134.0,0.3668]
[1735319784903,0.053188,94151.0,94150.0,0.7216]
[1735319785902,0.06030658,94151.0,94150.0,0.7216]
[1735319786402,0.05319,94147.0,94146.0,0.3608]
[1735319787191,0.002,94151.0,94146.0,0.3608]
[1735319787387,0.00587616,94178.0,94157.0,0.053184]
[1735319787586,0.05476871,94174.0,94173.0,0.3608]
[1735319787996,0.76858069,94174.0,94150.0,0.003]
[1735319788193,0.053182,94162.0,94155.0,0.25389697]
[1735319788391,0.413985,94156.0,94155.0,0.25389697]
[1735319788903,0.053185,94156.0,94155.0,0.25389697]
[1735319789109,0.0369,94161.0,94150.0,0.003]
[1735319789399,0.053188,94151.0,94150.0,0.003]
[1735319790385,0.053188,94151.0,94140.0,0.3608]
[1735319790589,0.053194,94141.0,94140.0,0.3608]
[1735319790901,0.05319,94148.0,94140.0,0.3608]
[1735319791404,0.001,94151.0,94140.0,0.3608]
[1735319791601,0.053189,94149.0,94140.0,0.3608]
[1735319791902,0.053191,94146.0,94140.0,0.3608]
[1735319792098,0.053193,94143.0,94140.0,0.3668]
[1735319792295,0.10859834,94150.0,94140.0,0.3688]
[1735319792296,0.001,94141.0,94140.0,0.3688]
[1735319792796,0.053193,94142.0,94140.0,0.3688]
[1735319793300,0.053193,94142.0,94140.0,0.006]
[1735319793600,0.001,94141.0,94140.0,0.007]
[1735319794893,0.053193,94142.0,94140.0,0.005]
[1735319795098,0.054193,94142.0,94140.0,0.007]
[1735319795500,0.001,94141.0,94140.0,0.007]
[1735319796103,0.053193,94142.0,94140.0,0.005]
[1735319796306,0.054193,94142.0,94140.0,0.007]
[1735319796701,0.001,94141.0,94140.0,0.007]
[1735319797707,0.001,94141.0,94140.0,0.002]
[1735319797897,0.001,94141.0,94140.0,0.007]
[1735319798302,0.41555301,94142.0,94140.0,0.007]
[1735319798603,0.414993,94142.0,94140.0,0.007]
[1735319798804,0.413993,94142.0,94140.0,0.005]
[1735319799109,0.001,94141.0,94140.0,0.007]
[1735319799509,0.415633,94142.0,94140.0,0.002]
[1735319799713,0.414993,94142.0,94140.0,0.007]
[1735319801599,0.053201,94128.0,94127.0,0.3608]
[1735319802909,0.054201,94128.0,94127.0,0.3688]
[1735319803110,0.055201,94128.0,94127.0,0.3708]
[1735319805317,0.002,94128.0,94127.0,0.3708]
[1735319806502,0.055201,94128.0,94127.0,0.3708]
[1735319810205,0.06127584,94128.0,94127.0,0.3708]
[1735319814012,0.06127584,94128.0,94121.0,0.3608]
[1735319814013,0.05321,94112.0,94110.0,0.3608]
[1735319814506,0.053206,94120.0,94110.0,0.3608]
[1735319814712,0.053203,94125.0,94119.0,0.3608]
[1735319814907,0.053206,94120.0,94113.0,0.053209]
[1735319815113,0.053207,94118.0,94113.0,0.053209]
[1735319815807,0.053208,94116.0,94110.0,0.3668]
[1735319816009,0.053209,94115.0,94110.0,0.3668]
[1735319816523,0.053209,94115.0,94113.0,0.006]
[1735319817112,0.053209,94115.0,94110.0,0.414011]
[1735319817313,0.054209,94115.0,94110.0,0.420011]
[1735319817717,0.053209,94114.0,94110.0,0.420011]
[1735319818218,0.053209,94114.0,94110.0,0.3668]
[1735319818413,0.053209,94114.0,94112.0,0.05321]
[1735319818822,0.053209,94114.0,94113.0,0.006]
[1735319819421,0.054209,94114.0,94112.0,0.05321]
[1735319819622,0.054209,94114.0,94112.0,0.05721]
[1735319820122,0.054209,94114.0,94112.0,0.004]
[1735319820317,0.053211,94111.0,94110.0,0.3608]
[1735319821528,0.053207,94117.0,94110.0,0.3608]
[1735319821710,0.001,94111.0,94110.0,0.414011]
[1735319822114,0.001,94111.0,94110.0,1.044011]
[1735319822423,0.001,94111.0,94110.0,0.414011]
[1735319822621,0.054211,94111.0,94110.0,0.3608]
[1735319823132,0.054211,94111.0,94110.0,0.3658]
[1735319823620,0.054211,94111.0,94110.0,0.005]
[1735319824217,0.053211,94111.0,94110.0,0.005]
[1735319825011,0.054211,94111.0,94110.0,0.005]
[1735319826011,0.053212,94109.0,94107.0,0.0684]
[1735319827024,0.053212,94109.0,94107.0,0.0343]
[1735319827228,0.053213,94107.0,94106.0,0.3608]
[1735319828620,0.054213,94107.0,94106.0,0.3608]
[1735319828821,0.055213,94107.0,94106.0,0.3668]
[1735319829729,0.002,94107.0,94106.0,0.3668]
[1735319829924,0.053209,94114.0,94107.0,0.053213]
[1735319830125,0.053209,94114.0,94106.0,0.7276]
[1735319830426,0.053209,94114.0,94110.0,0.053211]
[1735319830825,0.053205,94121.0,94108.0,0.63092]
[1735319831025,0.053188,94151.0,94120.0,0.3608]
[1735319831026,0.42250428,94150.0,94120.0,0.3608]
[1735319831332,0.053198,94133.0,94132.0,0.3608]
[1735319831633,0.053212,94109.0,94108.0,0.36172]
[1735319831823,0.053212,94109.0,94108.0,0.3608]
[1735319832022,0.053212,94109.0,94108.0,0.005]
[1735319832935,0.054212,94109.0,94108.0,0.005]
[1735319833631,0.002,94109.0,94108.0,0.005]
[1735319834139,0.055212,94109.0,94108.0,0.005]
[1735319835931,0.416012,94109.0,94108.0,0.005]
[1735319836142,0.053222,94092.0,94089.0,0.00059397]
[1735319837236,0.053222,94090.0,94089.0,0.00659397]
[1735319837438,0.053222,94090.0,94089.0,0.01264061]
[1735319838550,0.054222,94090.0,94089.0,0.00664061]
[1735319838853,0.25137851,94110.0,94089.0,0.31264061]
[1735319839044,0.25137851,94110.0,94109.0,0.3608]
[1735319839347,0.25137851,94110.0,94109.0,0.9908]
[1735319839544,0.053202,94127.0,94109.0,1.4011]
[1735319839745,0.053202,94127.0,94126.0,0.3608]
[1735319840847,0.054202,94127.0,94126.0,0.3608]
[1735319841549,0.055202,94127.0,94126.0,0.3608]
[1735319842250,0.055202,94127.0,94117.0,0.3608]
[1735319842447,0.053207,94118.0,94117.0,0.3608]
[1735319843246,0.053207,94118.0,94117.0,0.3628]
[1735319843956,0.053207,94118.0,94117.0,0.3608]
[1735319844253,0.053207,94118.0,94117.0,0.3628]
[1735319844651,0.054207,94118.0,94117.0,0.3628]
[1735319848358,0.001,94118.0,94117.0,0.3628]
[1735319848860,0.10859834,94150.0,94117.0,0.4003]
[1735319849060,0.40098367,94146.0,94142.0,0.3608]
[1735319849461,0.40860576,94146.0,94142.0,0.3608]
[1735319849662,0.34779267,94146.0,94144.0,0.053192]
[1735319849862,0.34779267,94146.0,94142.0,0.3608]
[1735319850050,0.053193,94144.0,94142.0,0.3608]
[1735319851163,0.006,94146.0,94142.0,0.3608]
[1735319851565,0.002,94144.0,94142.0,0.3608]
[1735319852264,0.005,94144.0,94142.0,0.3608]
[1735319852461,0.005,94144.0,94142.0,0.413993]
[1735319853061,0.002,94144.0,94142.0,0.414993]
[1735319853265,0.002,94144.0,94143.0,0.0741]
[1735319853771,0.002,94144.0,94143.0,0.037]
[1735319854658,0.002,94144.0,94142.0,0.3608]
[1735319854858,0.055192,94144.0,94143.0,0.001]
[1735319855067,0.053203,94124.0,94123.0,0.3623936]
[1735319855655,0.3608,94137.0,94123.0,0.3623936]
[1735319855864,0.10859834,94140.0,94123.0,0.3623936]
[1735319856167,0.10859834,94133.0,94123.0,0.3623936]
[1735319856357,0.053203,94125.0,94123.0,0.3623936]
[1735319856556,0.053203,94125.0,94123.0,0.3643936]
[1735319857061,0.053203,94125.0,94123.0,0.3653936]
[1735319857362,0.053203,94125.0,94123.0,0.3643936]
[1735319857567,0.054203,94125.0,94123.0,0.3653936]
[1735319857962,0.053203,94125.0,94123.0,0.3643936]
[1735319858168,0.054203,94125.0,94123.0,0.3653936]
[1735319858864,0.054203,94125.0,94123.0,0.3643936]
[1735319859562,0.053203,94125.0,94123.0,0.3623936]
[1735319859763,0.054203,94125.0,94123.0,0.3633936]
[1735319862273,0.001,94125.0,94123.0,0.4165976]
[1735319864464,0.11440721,94523.0,94123.0,0.4165976]
[1735319864465,0.053191,94147.0,94123.0,0.3633936]
[1735319864773,0.10859834,94133.0,94123.0,0.3633936]
[1735319864969,0.053201,94128.0,94123.0,0.3633936]
[1735319865269,0.10859834,94133.0,94105.0,0.00096]
[1735319865270,0.053203,94124.0,94105.0,0.00096]
[1735319865474,0.3608,94129.0,94107.0,0.053212]
[1735319865475,0.053212,94109.0,94107.0,0.053212]
[1735319866864,0.053209,94114.0,94108.0,0.053212]
[1735319867372,0.053209,94114.0,94111.0,0.05321]
[1735319868158,0.10859834,94115.0,94107.0,0.002]
[1735319868363,0.053212,94109.0,94107.0,0.002]
[1735319868863,0.053212,94109.0,94107.0,0.001]
[1735319869073,0.0395,94108.0,94107.0,0.001]
[1735319869271,0.0395,94108.0,94094.0,0.05322]
[1735319869468,0.053217,94100.0,94094.0,0.05322]
[1735319870477,0.054217,94100.0,94094.0,0.05422]
[1735319871769,0.054217,94100.0,94094.0,0.05622]
[1735319872378,0.055217,94100.0,94094.0,0.05622]
[1735319872971,0.002,94100.0,94094.0,0.003]
[1735319873276,0.05322,94095.0,94094.0,0.003]
[1735319874067,0.00969174,94100.0,94094.0,0.3638]
[1735319874268,0.002,94100.0,94098.0,0.053218]
[1735319874671,0.001,94100.0,94098.0,0.053218]
[1735319874976,0.001,94100.0,94097.0,0.3608]
[1735319874977,0.053217,94099.0,94097.0,0.36855157]
[1735319875176,0.001,94100.0,94097.0,0.414018]
[1735319875371,0.053218,94099.0,94095.0,0.0397]
[1735319875567,0.053218,94099.0,94098.0,0.002]
[1735319876277,0.053218,94099.0,94097.0,0.003]
[1735319876863,0.054218,94099.0,94098.0,0.001]
[1735319877780,0.055218,94099.0,94098.0,0.003]
[1735319879169,0.055218,94099.0,94098.0,0.002]
[1735319879578,0.3628,94099.0,94072.0,0.414032]
[1735319879879,0.05323,94078.0,94072.0,0.4004]
[1735319880173,0.05323,94077.0,94072.0,0.4004]
[1735319880483,0.053227,94083.0,94076.0,0.05323]
[1735319880773,0.10859834,94090.0,94072.0,0.4004]
[1735319881076,0.10859834,94090.0,94072.0,0.4014]
[1735319881283,0.053227,94082.0,94074.0,0.053232]
[1735319881483,0.053227,94082.0,94081.0,0.3608]
[1735319881667,0.00159462,94097.0,94081.0,0.3608]
[1735319881981,0.05481362,94097.0,94093.0,0.3608]
[1735319882176,0.05481362,94097.0,94094.0,0.08]
[1735319882580,0.00159462,94097.0,94094.0,0.13322]
[1735319883284,0.00159462,94097.0,94094.0,0.08]
[1735319883466,0.00159462,94097.0,94093.0,0.3608]
[1735319883671,0.05322,94094.0,94093.0,0.3608]
[1735319883977,0.00259462,94097.0,94093.0,0.3608]
[1735319884178,0.00259462,94097.0,94093.0,0.414021]
[1735319884572,0.00259462,94097.0,94093.0,0.3608]
[1735319884882,0.053212,94110.0,94103.0,0.053215]
[1735319885084,0.00064,94110.0,94104.0,0.0407]
[1735319885385,0.10859834,94113.0,94103.0,0.3608]
[1735319885386,0.053214,94105.0,94103.0,0.3608]
[1735319885583,0.053219,94096.0,94095.0,0.3608]
[1735319886384,0.053219,94096.0,94091.0,0.00784898]
[1735319886684,0.053219,94096.0,94086.0,0.414024]
[1735319887072,0.054219,94096.0,94086.0,0.414024]
[1735319887475,0.054219,94096.0,94094.0,0.3608]
[1735319888469,0.001,94096.0,94094.0,0.3608]
[1735319888675,0.05321,94113.0,94095.0,0.0396]
[1735319888871,0.053212,94109.0,94104.0,0.3608]
[1735319889081,0.053212,94109.0,94105.0,0.0408]
[1735319889383,0.053212,94109.0,94105.0,0.0806]
[1735319890373,0.054212,94109.0,94105.0,0.0806]
[1735319890773,0.001,94109.0,94105.0,0.0806]
[1735319892285,0.24891982,94120.0,94105.0,0.0806]
[1735319892286,0.24891982,94120.0,94108.0,0.3608]
[1735319892487,0.24891982,94120.0,94119.0,0.3608]
[1735319893381,0.24991982,94120.0,94119.0,0.3608]
[1735319893875,0.24991982,94120.0,94119.0,0.4008]
[1735319894079,0.003,94120.0,94119.0,0.4008]
[1735319894982,0.002,94120.0,94119.0,0.4008]
[1735319895691,0.001,94120.0,94119.0,0.4018]
[1735319895890,0.001,94120.0,94119.0,0.3618]
[1735319896787,0.001,94120.0,94119.0,0.3608]
[1735319896987,0.001,94120.0,94119.0,0.3638]
[1735319904191,0.0385,94120.0,94119.0,0.003]
[1735319904383,0.0795,94120.0,94119.0,0.003]
[1735319904892,0.0795,94120.0,94108.0,0.3608]
[1735319905081,0.053212,94109.0,94108.0,0.3608]
[1735319906396,0.054212,94109.0,94108.0,0.3628]
[1735319906795,0.05837643,94109.0,94108.0,0.3628]
[1735319907694,0.05837643,94109.0,94108.0,0.3608]
[1735319907897,0.05837643,94109.0,94108.0,0.3628]
[1735319908898,0.05837643,94109.0,94108.0,0.002]
[1735319912901,0.053219,94097.0,94095.0,0.3608]
[1735319913698,0.00416443,94096.0,94095.0,0.3608]
[1735319914299,0.00416443,94096.0,94087.0,0.3608]
[1735319914499,0.053225,94086.0,94085.0,0.00159416]
[1735319914689,0.41818943,94086.0,94085.0,0.00159416]
[1735319914891,0.05738943,94086.0,94085.0,0.00159416]
[1735319915404,0.41818943,94086.0,94085.0,0.00159416]
[1735319915695,0.41918943,94086.0,94085.0,0.00359416]
[1735319916906,0.05838943,94086.0,94085.0,0.00359416]
[1735319917997,0.06703149,94086.0,94085.0,0.00359416]
[1735319919793,0.01380649,94086.0,94085.0,0.00359416]